bitfinex/quotes_SOLUSD_20241226
["timestamp","ask_amount","ask_price","bid_price","bid_amount"]
[1735233230890,8.2213,190.63,190.56,10.56918675]
[1735233231089,8.2213,190.63,190.57,10.56918675]
[1735233231318,8.2213,190.63,190.58,10.56918675]
[1735233231995,8.2213,190.63,190.57,10.56918675]
[1735233232193,8.2213,190.63,190.56,10.56918675]
[1735233232593,8.2213,190.63,190.58,10.56918675]
[1735233234218,8.2213,190.63,190.57,10.56918675]
[1735233235332,8.2213,190.63,190.56,10.56918675]
[1735233236519,8.2213,190.63,190.57,10.56918675]
[1735233237821,8.2213,190.63,190.53,0.78689207]
[1735233238006,8.2213,190.63,190.56,10.56918675]
[1735233238205,8.2213,190.63,190.58,10.56918675]
[1735233239517,8.2213,190.63,190.6,10.56918675]
[1735233239717,8.27,190.67,190.62,10.56918675]
[1735233239922,8.27,190.67,190.65,10.56918675]
[1735233240223,8.27,190.67,190.64,10.56918675]
[1735233241622,8.27,190.67,190.63,10.56918675]
[1735233242408,8.27,190.67,190.62,10.56918675]
[1735233245107,1.6632,190.67,190.65,10.56918675]
[1735233245409,8.27,190.71,190.66,10.56918675]
[1735233245605,8.27,190.71,190.67,10.56918675]
[1735233246028,8.27,190.71,190.64,10.56918675]
[1735233247120,8.27,190.71,190.62,10.56918675]
[1735233248531,8.27,190.71,190.63,10.56918675]
[1735233249026,8.27,190.71,190.64,10.56918675]
[1735233250332,8.27,190.71,190.63,10.56918675]
[1735233251208,8.27,190.71,190.62,10.56918675]
[1735233253122,8.27,190.71,190.63,10.56918675]
[1735233255621,8.27,190.71,190.62,10.56918675]
[1735233257918,8.27,190.71,190.63,10.56918675]
[1735233267955,8.27,190.71,190.64,10.56918675]
[1735233268647,1.6632,190.71,190.61,23.902374]
[1735233268946,6.4008,190.76,190.7,10.56918675]
[1735233269144,6.4008,190.76,190.72,10.56918675]
[1735233269354,6.4008,190.76,190.71,10.56918675]
[1735233271650,6.4008,190.76,190.72,10.56918675]
[1735233272738,6.4008,190.76,190.71,10.56918675]
[1735233272932,6.4008,190.76,190.65,20.0]
[1735233273252,6.4008,190.76,190.66,10.56918675]
[1735233273737,6.4008,190.76,190.67,10.56918675]
[1735233275533,6.4008,190.76,190.63,20.0]
[1735233275739,20.0,190.73,190.65,10.56918675]
[1735233277751,20.0,190.73,190.66,10.56918675]
[1735233279653,1.6158,190.72,190.65,10.56918675]
[1735233280257,1.6158,190.72,190.64,10.56918675]
[1735233280646,1.6158,190.72,190.65,10.56918675]
[1735233282235,1.6158,190.72,190.62,24.6889999]
[1735233282436,1.6158,190.72,190.64,10.56918675]
[1735233285347,1.6158,190.72,190.62,10.56918675]
[1735233285666,1.6158,190.67,190.6,10.56918675]
[1735233285840,1.6158,190.67,190.56,8.1808526]
[1735233286166,1.6158,190.67,190.58,10.56918675]
[1735233287752,1.6158,190.67,190.59,10.56918675]
[1735233289365,1.6158,190.67,190.58,10.56918675]
[1735233289575,1.6158,190.65,190.54,20.0]
[1735233289743,20.0,190.63,190.54,10.56918675]
[1735233290466,20.0,190.63,190.55,10.56918675]
[1735233292043,20.0,190.63,190.54,10.56918675]
[1735233295465,6.2278,190.61,190.53,10.56918675]
[1735233297980,6.2278,190.61,190.54,10.56918675]
[1735233301980,6.2278,190.61,190.56,10.56918675]
[1735233302282,6.2278,190.61,190.57,10.56918675]
[1735233302449,6.2278,190.61,190.54,10.56918675]
[1735233302653,6.2278,190.61,190.53,10.56918675]
[1735233303054,6.2278,190.61,190.5,10.56918675]
[1735233303271,1.6212,190.6,190.49,10.56918675]
[1735233303653,20.0,190.58,190.49,10.56918675]
[1735233303863,20.0,190.58,190.5,10.56918675]
[1735233304063,20.0,190.58,190.48,10.56918675]
[1735233304288,1.6212,190.57,190.48,10.56918675]
[1735233304490,6.2278,190.56,190.48,10.56918675]
[1735233305275,6.2278,190.56,190.44,0.78728928]
[1735233305476,6.2278,190.56,190.47,10.56918675]
[1735233305805,6.2278,190.56,190.46,10.56918675]
[1735233306083,6.2278,190.56,190.47,10.56918675]
[1735233306301,6.2278,190.56,190.48,10.56918675]
[1735233306469,6.2278,190.56,190.5,10.56918675]
[1735233307170,6.2278,190.56,190.51,10.56918675]
[1735233307380,6.2278,190.56,190.5,10.56918675]
[1735233307561,6.2278,190.56,190.51,10.56918675]
[1735233308002,6.2278,190.56,190.48,0.78716724]
[1735233308294,6.2278,190.56,190.5,10.56918675]
[1735233309291,6.2278,190.56,190.48,11.35635399]
[1735233309597,6.2278,190.56,190.48,10.56918675]
[1735233309985,6.2278,190.56,190.44,0.78723205]
[1735233310201,6.2278,190.56,190.48,10.56918675]
[1735233311175,6.2278,190.56,190.46,0.78729389]
[1735233311492,6.2278,190.56,190.48,10.56918675]
[1735233311871,6.2278,190.56,190.51,10.56918675]
[1735233312178,6.2278,190.56,190.49,10.56918675]
[1735233312689,6.2278,190.56,190.47,10.56918675]
[1735233313586,6.2278,190.56,190.49,10.56918675]
[1735233313887,6.2278,190.56,190.51,10.56918675]
[1735233314973,6.2278,190.56,190.47,43.902374]
[1735233315178,6.2278,190.56,190.48,10.56918675]
[1735233315377,6.2278,190.56,190.49,10.56918675]
[1735233315689,6.2278,190.56,190.46,0.78717191]
[1735233315873,6.2278,190.56,190.5,10.56918675]
[1735233316194,6.2278,190.56,190.51,10.56918675]
[1735233316671,6.2278,190.56,190.5,10.56918675]
[1735233318094,6.2278,190.56,190.51,10.56918675]
[1735233318796,6.2278,190.56,190.5,10.56918675]
[1735233319093,6.2278,190.56,190.49,10.56918675]
[1735233319671,6.2278,190.56,190.51,10.56918675]
[1735233320907,6.2278,190.56,190.47,0.78721296]
[1735233320908,6.2278,190.56,190.52,10.56918675]
[1735233321075,1.6212,190.57,190.47,0.78721296]
[1735233321076,1.6212,190.57,190.55,10.56918675]
[1735233321273,6.4715,190.61,190.56,10.56918675]
[1735233321473,6.4715,190.61,190.57,10.56918675]
[1735233322167,6.4715,190.61,190.55,10.56918675]
[1735233322983,6.4715,190.61,190.56,10.56918675]
[1735233323185,1.51,190.62,190.58,10.56918675]
[1735233323387,1.51,190.62,190.53,0.78699013]
[1735233323388,6.4715,190.66,190.61,10.56918675]
[1735233323583,6.4715,190.66,190.59,0.78683392]
[1735233323584,6.4715,190.66,190.62,10.56918675]
[1735233323787,6.4715,190.66,190.61,10.56918675]
[1735233324496,6.4715,190.66,190.6,10.56918675]
[1735233326097,6.4715,190.66,190.61,10.56918675]
[1735233326994,6.4715,190.66,190.6,10.56918675]
[1735233327172,6.4715,190.66,190.59,10.56918675]
[1735233327373,6.4715,190.66,190.57,0.78675032]
[1735233327591,6.4715,190.66,190.58,10.56918675]
[1735233328095,6.4715,190.66,190.57,10.56918675]
[1735233328995,6.4715,190.66,190.52,0.78691575]
[1735233329172,20.0,190.63,190.54,10.56918675]
[1735233329374,6.4715,190.66,190.58,10.56918675]
[1735233329588,6.4715,190.66,190.59,10.56918675]
[1735233329872,6.4715,190.66,190.61,10.56918675]
[1735233330299,6.4715,190.66,190.6,10.56918675]
[1735233330797,6.4715,190.66,190.59,10.56918675]
[1735233332393,6.4715,190.66,190.6,10.56918675]
[1735233333399,6.4715,190.66,190.59,10.56918675]
[1735233333785,6.4715,190.66,190.57,10.56918675]
[1735233334094,6.4715,190.66,190.56,10.56918675]
[1735233334598,1.6449,190.62,190.54,10.56918675]
[1735233335380,1.6449,190.62,190.53,10.56918675]
[1735233335614,6.6101,190.61,190.5,10.56918675]
[1735233335774,1.6449,190.6,190.5,10.56918675]
[1735233335983,20.0,190.58,190.49,10.56918675]
[1735233336195,20.0,190.58,190.48,10.56918675]
[1735233337205,6.6101,190.56,190.45,10.56918675]
[1735233339381,1.5792,190.52,190.45,10.56918675]
[1735233339778,1.5792,190.52,190.46,10.56918675]
[1735233340195,1.5792,190.52,190.45,10.56918675]
[1735233343811,1.5792,190.52,190.46,10.56918675]
[1735233346009,1.5792,190.52,190.45,10.56918675]
[1735233349405,1.5792,190.52,190.46,10.56918675]
[1735233349912,1.5792,190.52,190.45,10.56918675]
[1735233350909,1.5792,190.52,190.44,10.56918675]
[1735233351095,1.5792,190.52,190.43,10.56918675]
[1735233351732,1.5792,190.52,190.44,10.56918675]
[1735233361426,1.5792,190.52,190.44,9.06918675]
[1735233361931,1.5792,190.52,190.47,10.56918675]
[1735233362137,1.5792,190.52,190.49,10.56918675]
[1735233362740,1.5792,190.52,190.48,10.56918675]
[1735233363811,1.5792,190.52,190.49,10.56918675]
[1735233365010,1.5792,190.52,190.48,10.56918675]
[1735233365214,1.5792,190.52,190.47,10.56918675]
[1735233365523,1.5792,190.52,190.49,10.56918675]
[1735233368450,1.5792,190.52,190.48,10.56918675]
[1735233371031,1.5792,190.52,190.44,0.912737]
[1735233371233,1.5792,190.52,190.46,10.56918675]
[1735233371437,1.5792,190.52,190.43,10.56918675]
[1735233372526,6.0402,190.51,190.42,10.56918675]
[1735233375157,6.0402,190.51,190.44,10.56918675]
[1735233377340,6.0402,190.51,190.43,10.56918675]
[1735233377548,6.0402,190.51,190.42,10.56918675]
[1735233377941,6.0402,190.51,190.39,23.776884]
[1735233378131,6.0402,190.51,190.4,10.56918675]
[1735233378626,1.5743,190.5,190.39,10.56918675]
[1735233379231,1.5743,190.5,190.4,10.56918675]
[1735233379416,1.5743,190.5,190.41,10.56918675]
[1735233380945,20.0,190.48,190.4,8.67744353]
[1735233384722,1.5491,190.47,190.38,8.67744353]
[1735233384927,6.3036,190.46,190.38,8.67744353]
[1735233385244,1.5491,190.45,190.36,0.78768486]
[1735233385449,20.0,190.43,190.35,8.67744353]
[1735233385630,20.0,190.43,190.34,8.67744353]
[1735233386631,6.3036,190.46,190.33,8.67744353]
[1735233386632,6.3036,190.41,190.33,8.67744353]
[1735233387526,6.3036,190.41,190.32,8.67744353]
[1735233387728,6.3036,190.41,190.31,8.67744353]
[1735233388934,1.5491,190.4,190.29,23.776884]
[1735233389236,1.5491,190.4,190.28,20.78801657]
[1735233389444,1.5491,190.4,190.31,8.67744353]
[1735233389743,20.0,190.38,190.3,8.67744353]
[1735233397143,20.0,190.38,190.29,8.67744353]
[1735233399846,20.0,190.38,190.28,8.67744353]
[1735233400022,7.6688,190.37,190.27,8.67744353]
[1735233400844,7.6688,190.37,190.26,23.902374]
[1735233401058,7.6688,190.37,190.34,8.67744353]
[1735233401550,7.6688,190.37,190.33,8.67744353]
[1735233401952,1.5124,190.37,190.36,8.67744353]
[1735233402160,6.1564,190.41,190.36,8.67744353]
[1735233402453,6.1564,190.41,190.38,8.67744353]
[1735233402950,1.5124,190.42,190.38,8.67744353]
[1735233403151,1.5124,190.42,190.39,8.67744353]
[1735233403534,1.5124,190.42,190.38,8.67744353]
[1735233404139,1.5124,190.42,190.35,0.7877138]
[1735233404330,1.5124,190.42,190.36,8.67744353]
[1735233405051,1.5124,190.42,190.37,8.67744353]
[1735233405255,1.5124,190.42,190.39,8.67744353]
[1735233406552,1.5124,190.42,190.38,8.67744353]
[1735233406958,1.5124,190.42,190.37,8.67744353]
[1735233407851,1.5124,190.42,190.35,24.56456717]
[1735233408060,1.5124,190.42,190.36,8.67744353]
[1735233408361,1.5124,190.42,190.38,8.67744353]
[1735233408652,7.6688,190.46,190.39,8.67744353]
[1735233408842,7.6688,190.46,190.41,8.67744353]
[1735233410335,7.6688,190.46,190.4,8.67744353]
[1735233410530,1.5124,190.53,190.44,8.67744353]
[1735233411030,1.5124,190.53,190.45,8.67744353]
[1735233411759,1.5124,190.53,190.42,23.776884]
[1735233411760,1.5124,190.53,190.42,8.67744353]
[1735233411945,1.5124,190.53,190.41,8.67744353]
[1735233412130,20.0,190.51,190.4,8.67744353]
[1735233412332,20.0,190.51,190.41,8.67744353]
[1735233412744,20.0,190.51,190.39,0.78758262]
[1735233413061,20.0,190.51,190.42,8.67744353]
[1735233413563,20.0,190.51,190.43,8.67744353]
[1735233413862,20.0,190.51,190.44,8.67744353]
[1735233414160,1.5124,190.53,190.44,8.67744353]
[1735233415762,1.5124,190.53,190.43,8.67744353]
[1735233415939,20.0,190.51,190.43,8.67744353]
[1735233416140,20.0,190.51,190.41,8.67744353]
[1735233416447,20.0,190.51,190.42,8.67744353]
[1735233416655,20.0,190.51,190.43,8.67744353]
[1735233416841,20.0,190.51,190.44,8.67744353]
[1735233418266,20.0,190.51,190.43,8.67744353]
[1735233420343,1.5124,190.53,190.43,8.67744353]
[1735233421889,1.5124,190.53,190.42,8.67744353]
[1735233422772,20.0,190.51,190.42,8.67744353]
[1735233423968,20.0,190.51,190.44,8.67744353]
[1735233424146,20.0,190.51,190.43,8.67744353]
[1735233425173,20.0,190.51,190.42,8.67744353]
[1735233425373,20.0,190.51,190.43,8.67744353]
[1735233426453,20.0,190.51,190.44,8.67744353]
[1735233426957,20.0,190.51,190.43,8.67744353]
[1735233427467,20.0,190.51,190.42,8.67744353]
[1735233431963,20.0,190.51,190.44,8.67744353]
[1735233432655,1.5124,190.53,190.46,8.67744353]
[1735233432853,1.5124,190.53,190.49,8.67744353]
[1735233433061,1.5124,190.53,190.5,8.67744353]
[1735233433274,1.5124,190.53,190.51,8.67744353]
[1735233433566,1.5124,190.53,190.52,8.67744353]
[1735233433877,1.529,190.68,190.52,8.67744353]
[1735233434080,23.902374,190.67,190.55,8.67744353]
[1735233435254,23.902374,190.67,190.48,0.78703089]
[1735233435255,20.0,190.6,190.48,0.78703089]
[1735233435560,20.0,190.6,190.51,8.67744353]
[1735233436276,20.0,190.6,190.52,8.67744353]
[1735233436476,8.0261,190.63,190.54,8.67744353]
[1735233436682,8.0261,190.63,190.55,8.67744353]
[1735233437960,8.0261,190.63,190.56,8.67744353]
[1735233438855,8.0261,190.63,190.57,8.67744353]
[1735233439081,8.0261,190.63,190.58,8.67744353]
[1735233440876,1.529,190.68,190.61,8.67744353]
[1735233441078,1.529,190.68,190.63,8.67744353]
[1735233441256,1.529,190.74,190.65,8.67744353]
[1735233441656,1.529,190.74,190.64,8.67744353]
[1735233442078,1.529,190.74,190.63,8.67744353]
[1735233442276,1.529,190.74,190.64,8.67744353]
[1735233443281,23.902374,190.73,190.58,0.78663577]
[1735233443486,30.399474,190.71,190.57,20.0]
[1735233443673,20.0,190.68,190.53,0.78686215]
[1735233443979,20.0,190.68,190.56,8.67744353]
[1735233444179,20.0,190.68,190.55,8.67744353]
[1735233444180,0.12549,190.67,190.55,8.67744353]
[1735233444370,1.526,190.66,190.55,8.67744353]
[1735233444554,1.526,190.66,190.54,8.67744353]
[1735233444753,20.0,190.62,190.54,8.67744353]
[1735233446182,20.0,190.62,190.55,13.53835498]
[1735233446783,6.1998,190.65,190.56,13.53835498]
[1735233447372,6.1998,190.65,190.55,13.53835498]
[1735233447697,6.1998,190.65,190.56,13.53835498]
[1735233448387,6.1998,190.65,190.55,13.53835498]
[1735233448890,6.1998,190.65,190.56,13.53835498]
[1735233450887,6.1998,190.65,190.55,13.53835498]
[1735233451301,6.1998,190.65,190.55,13.53714276]
[1735233451501,6.1998,190.65,190.53,13.53714276]
[1735233451667,1.526,190.61,190.52,13.53714276]
[1735233451867,1.526,190.61,190.51,13.53714276]
[1735233452400,1.526,190.61,190.52,13.53714276]
[1735233453391,1.526,190.61,190.51,13.53714276]
[1735233454089,1.526,190.61,190.5,13.53714276]
[1735233454279,1.526,190.61,190.51,13.53714276]
[1735233454481,1.526,190.61,190.55,13.53714276]
[1735233455100,1.526,190.61,190.56,13.53714276]
[1735233455307,1.526,190.61,190.57,13.53714276]
[1735233456785,1.526,190.61,190.55,13.53714276]
[1735233457608,1.526,190.61,190.53,13.53714276]
[1735233459220,1.526,190.61,190.52,13.53714276]
[1735233459415,1.526,190.61,190.52,13.5410454]
[1735233459590,1.526,190.61,190.51,13.5410454]
[1735233459793,6.228,190.6,190.47,13.5410454]
[1735233459993,20.0,190.57,190.47,13.5410454]
[1735233461330,20.0,190.57,190.46,23.776884]
[1735233461532,1.6177,190.56,190.47,13.5410454]
[1735233463418,1.6177,190.56,190.48,13.5410454]
[1735233464028,1.6177,190.56,190.49,13.5410454]
[1735233465299,1.6177,190.56,190.48,13.5410454]
[1735233467633,1.6177,190.56,190.49,13.5410454]
[1735233467924,1.6177,190.56,190.48,13.5410454]
[1735233469126,1.6177,190.56,190.49,13.5410454]
[1735233470231,1.6177,190.56,190.49,8.66958489]
[1735233471523,1.6177,190.56,190.48,8.66958489]
[1735233473132,1.6177,190.56,190.49,8.66958489]
[1735233473330,1.6177,190.56,190.5,8.66958489]
[1735233473533,1.6177,190.56,190.53,8.66958489]
[1735233473832,1.6177,190.56,190.55,8.66958489]
[1735233474031,1.6177,190.56,190.53,8.66958489]
[1735233474412,1.6177,190.56,190.54,8.66958489]
[1735233475014,1.6177,190.56,190.53,8.66958489]
[1735233475729,1.6177,190.56,190.5,20.0]
[1735233475926,1.6177,190.56,190.53,8.66958489]
[1735233476232,1.6177,190.56,190.53,13.54047917]
[1735233477229,1.6177,190.56,190.54,13.54047917]
[1735233478226,13.94868223,190.66,190.55,13.54047917]
[1735233478227,1.5779,190.61,190.55,13.54047917]
[1735233478403,1.5779,190.61,190.59,13.54047917]
[1735233478609,8.1502,190.65,190.6,13.54047917]
[1735233478818,1.5779,190.65,190.63,13.54047917]
[1735233479032,13.94868223,190.66,190.64,13.54047917]
[1735233479633,1.5779,190.69,190.65,13.54047917]
[1735233479933,1.5779,190.69,190.61,23.902374]
[1735233479934,1.5779,190.69,190.64,13.54047917]
[1735233481938,1.5779,190.69,190.62,13.54047917]
[1735233482132,1.5779,190.69,190.63,13.54047917]
[1735233482322,1.5779,190.69,190.64,13.54047917]
[1735233482639,1.5779,190.69,190.65,13.54047917]
[1735233482934,1.5779,190.69,190.64,13.54047917]
[1735233483435,1.5779,190.69,190.63,13.54047917]
[1735233484212,1.5779,190.69,190.64,13.54047917]
[1735233484412,1.5779,190.69,190.67,13.54047917]
[1735233484611,1.5779,190.74,190.67,13.54047917]
[1735233485028,1.5779,190.74,190.66,13.54047917]
[1735233485213,1.5779,190.74,190.65,13.54047917]
[1735233485418,20.0,190.72,190.62,37.31736317]
[1735233487840,20.0,190.72,190.61,13.54047917]
[1735233489613,1.5254,190.71,190.61,13.54047917]
[1735233492925,6.3783,190.69,190.58,13.54047917]
[1735233493123,20.0,190.66,190.57,13.54047917]
[1735233495445,20.0,190.66,190.56,13.54047917]
[1735233495749,20.0,190.66,190.55,13.54047917]
[1735233496125,1.5057,190.65,190.55,13.54047917]
[1735233496948,1.5057,190.65,190.54,13.54047917]
[1735233497147,20.0,190.61,190.53,13.54047917]
[1735233498755,6.3033,190.64,190.54,13.54047917]
[1735233498955,6.3033,190.64,190.58,13.54047917]
[1735233499255,1.5057,190.65,190.61,13.54047917]
[1735233499444,1.5057,190.65,190.62,13.54047917]
[1735233499643,1.5057,190.65,190.63,13.54047917]
[1735233500325,1.5057,190.65,190.64,13.54047917]
[1735233500729,7.809,190.69,190.64,13.54047917]
[1735233502529,7.809,190.69,190.65,13.54047917]
[1735233502946,7.809,190.69,190.64,13.54047917]
[1735233503442,1.5057,190.69,190.64,13.54047917]
[1735233503646,1.5057,190.69,190.65,13.54047917]
[1735233503847,6.3033,190.73,190.66,13.54047917]
[1735233504154,6.3033,190.73,190.64,13.54047917]
[1735233505338,6.3033,190.73,190.63,13.54047917]
[1735233505733,6.3033,190.73,190.64,13.54047917]
[1735233507455,6.3033,190.73,190.62,13.54047917]
[1735233507658,20.0,190.7,190.6,13.54047917]
[1735233507961,20.0,190.7,190.61,37.31736317]
[1735233508353,20.0,190.7,190.62,13.54047917]
[1735233508562,20.0,190.7,190.63,13.54047917]
[1735233509153,1.6392,190.72,190.63,13.54047917]
[1735233509349,1.6392,190.72,190.65,13.54047917]
[1735233510740,1.6392,190.72,190.64,13.54047917]
[1735233511167,1.6392,190.72,190.63,13.54047917]
[1735233511344,1.6392,190.72,190.64,13.54047917]
[1735233512158,1.6392,190.72,190.66,13.54047917]
[1735233512464,1.6392,190.72,190.64,13.54047917]
[1735233514953,1.6392,190.72,190.62,13.54047917]
[1735233515270,20.0,190.7,190.61,13.54047917]
[1735233515467,20.0,190.7,190.62,13.54047917]
[1735233515767,20.0,190.7,190.6,37.31736317]
[1735233515954,20.0,190.7,190.6,13.54047917]
[1735233516143,1.6226,190.67,190.56,13.54047917]
[1735233516342,20.0,190.65,190.55,13.54047917]
[1735233516765,1.6226,190.64,190.55,13.54047917]
[1735233517066,1.6226,190.64,190.52,0.78674369]
[1735233517067,1.6226,190.64,190.53,23.902374]
[1735233517264,1.6226,190.64,190.54,13.54047917]
[1735233517566,6.6471,190.63,190.52,13.54047917]
[1735233518369,20.0,190.6,190.51,13.54047917]
[1735233518745,20.0,190.6,190.52,13.54047917]
[1735233519673,20.0,190.6,190.51,13.54047917]
[1735233520365,20.0,190.6,190.5,13.54047917]
[1735233522073,6.3817,190.58,190.47,13.54047917]
[1735233522370,6.3817,190.58,190.48,13.54047917]
[1735233523178,6.3817,190.58,190.47,13.54047917]
[1735233523954,20.0,190.55,190.44,23.776884]
[1735233524157,20.0,190.55,190.45,13.54047917]
[1735233524353,20.0,190.55,190.44,13.54047917]
[1735233524652,6.3817,190.53,190.44,13.54047917]
[1735233525462,6.3817,190.53,190.43,13.54047917]
[1735233525975,6.3817,190.53,190.44,13.54047917]
[1735233526557,6.3817,190.53,190.46,13.54047917]
[1735233526746,6.3817,190.53,190.4,13.54047917]
[1735233526747,6.3817,190.53,190.47,13.54047917]
[1735233527373,6.3817,190.53,190.46,13.54047917]
[1735233527870,6.3817,190.53,190.45,13.54047917]
[1735233528564,6.3817,190.53,190.44,13.54047917]
[1735233529274,6.3817,190.53,190.45,13.54047917]
[1735233530077,6.3817,190.53,190.46,13.54047917]
[1735233530259,6.3817,190.53,190.47,13.54047917]
[1735233530778,6.3817,190.53,190.46,13.54047917]
[1735233531159,6.3817,190.53,190.45,13.54047917]
[1735233531977,6.3817,190.53,190.44,13.54047917]
[1735233532170,6.3817,190.53,190.43,13.54047917]
[1735233533885,6.3817,190.53,190.42,13.54047917]
[1735233534183,6.3817,190.53,190.44,13.54047917]
[1735233535082,6.3817,190.53,190.45,13.54047917]
[1735233535386,6.3817,190.53,190.47,13.54047917]
[1735233535565,6.3817,190.53,190.46,13.54047917]
[1735233535767,6.3817,190.53,190.45,13.54047917]
[1735233539887,6.3817,190.53,190.44,13.54047917]
[1735233540067,6.3817,190.53,190.45,13.54047917]
[1735233541290,6.3817,190.53,190.46,13.54047917]
[1735233541588,6.3817,190.53,190.5,13.54047917]
[1735233544185,6.3817,190.53,190.47,13.54047917]
[1735233544390,6.3817,190.53,190.44,13.54047917]
[1735233544564,6.3817,190.53,190.43,13.54047917]
[1735233544964,6.3817,190.53,190.42,13.54047917]
[1735233545369,6.3817,190.53,190.43,13.54047917]
[1735233547771,1.5025,190.49,190.42,13.54047917]
[1735233549588,1.5025,190.49,190.47,13.54047917]
[1735233549780,7.9763,190.53,190.48,13.54047917]
[1735233549983,1.5946,190.53,190.51,13.54047917]
[1735233550471,1.5946,190.53,190.5,13.54047917]
[1735233552687,1.5946,190.53,190.49,13.54047917]
[1735233554385,1.5946,190.53,190.48,13.54047917]
[1735233555005,1.5946,190.53,190.47,13.54047917]
[1735233555194,1.5946,190.53,190.48,13.54047917]
[1735233557384,1.5946,190.53,190.47,13.54047917]
[1735233558692,1.5946,190.53,190.5,13.54047917]
[1735233559069,6.5762,190.58,190.51,13.54047917]
[1735233559271,8.1708,190.58,190.53,13.54047917]
[1735233560204,8.1708,190.58,190.5,13.54047917]
[1735233560407,8.1708,190.58,190.47,13.54047917]
[1735233560711,20.0,190.55,190.46,13.54047917]
[1735233560874,1.5946,190.54,190.45,13.54047917]
[1735233561376,1.5946,190.54,190.46,13.54047917]
[1735233562572,6.5762,190.53,190.41,13.54047917]
[1735233562771,1.5946,190.49,190.41,13.54047917]
[1735233562972,1.5946,190.49,190.4,13.54047917]
[1735233563173,6.5762,190.48,190.38,13.54047917]
[1735233563413,6.5762,190.48,190.37,13.54047917]
[1735233564112,20.0,190.45,190.37,13.54047917]
[1735233566207,1.6507,190.44,190.36,13.54047917]
[1735233569908,1.6507,190.44,190.35,13.54047917]
[1735233570128,1.6507,190.44,190.34,13.54047917]
[1735233570426,6.1166,190.43,190.32,13.54047917]
[1735233572707,20.0,190.4,190.31,13.54047917]
[1735233572914,1.6507,190.39,190.3,13.54047917]
[1735233574622,1.6507,190.39,190.32,13.54047917]
[1735233576416,1.6507,190.39,190.33,13.54047917]
[1735233576620,1.6507,190.39,190.32,13.54047917]
[1735233576793,1.6507,190.39,190.31,13.54047917]
[1735233576999,1.6507,190.39,190.3,13.54047917]
[1735233578313,1.6507,190.39,190.24,0.78807303]
[1735233578314,6.1166,190.38,190.29,13.54047917]
[1735233578523,1.6507,190.37,190.28,13.54047917]
[1735233578715,20.0,190.35,190.27,13.54047917]
[1735233580409,20.0,190.35,190.26,13.54047917]
[1735233580812,1.6441,190.34,190.26,13.54047917]
[1735233582936,1.6441,190.34,190.25,13.54047917]
[1735233583107,1.6441,190.32,190.21,13.54047917]
[1735233584301,20.0,190.3,190.21,13.54047917]
[1735233585024,1.6026,190.29,190.21,13.54047917]
[1735233585614,6.3883,190.28,190.19,13.54047917]
[1735233585814,6.3883,190.28,190.18,13.54047917]
[1735233586422,20.0,190.25,190.18,13.54047917]
[1735233586620,7.9909,190.24,190.13,0.78856064]
[1735233586825,7.9909,190.24,190.15,13.54047917]
[1735233587006,7.9909,190.24,190.16,13.54047917]
[1735233587333,7.9909,190.24,190.21,13.54047917]
[1735233587514,7.9909,190.24,190.19,13.54047917]
[1735233588041,7.9909,190.24,190.18,13.54047917]
[1735233588553,7.9909,190.24,190.16,13.54047917]
[1735233588708,7.9909,190.24,190.15,13.54047917]
[1735233589210,7.9909,190.24,190.14,13.54047917]
[1735233590334,20.0,190.21,190.14,13.54047917]
[1735233590540,20.0,190.21,190.13,13.54047917]
[1735233591440,1.6026,190.2,190.12,13.54047917]
[1735233591738,1.6026,190.2,190.11,13.54047917]
[1735233593240,1.6026,190.2,190.1,13.54047917]
[1735233593441,6.3883,190.19,190.1,13.54047917]
[1735233594138,6.3883,190.19,190.09,0.12549]
[1735233594342,6.3883,190.19,190.15,13.54047917]
[1735233594548,6.3883,190.19,190.16,13.54047917]
[1735233595054,6.3883,190.19,190.15,13.54047917]
[1735233597854,6.3883,190.19,190.14,13.54047917]
[1735233598649,6.3883,190.19,190.12,23.776884]
[1735233598650,6.3883,190.19,190.13,13.54047917]
[1735233598855,6.3883,190.19,190.11,13.54047917]